bitfinex-derivatives/quotes_ETHF0:USTF0_20250727
["timestamp","ask_amount","ask_price","bid_price","bid_amount"]
[1753603003082,0.78749507,3765.1,3765.0,23.60472]
[1753603003382,3.2078,3765.6,3765.5,1.23905]
[1753603003586,3.2078,3765.6,3765.5,23.60365]
[1753603003878,3.3992,3765.6,3765.5,23.60365]
[1753603004478,3.2078,3765.6,3765.5,23.60365]
[1753603004684,4.6541,3766.0,3765.9,1.7727]
[1753603004977,5.18498,3766.0,3765.9,22.658]
[1753603005383,5.18498,3766.0,3765.9,23.1147]
[1753603005778,4.6541,3766.0,3765.9,23.1147]
[1753603005979,3.2078,3766.0,3765.9,23.64559]
[1753603006475,0.6363,3766.3,3766.2,1.23895]
[1753603006676,0.6363,3766.5,3766.4,1.23892]
[1753603006881,0.9293,3766.5,3766.4,23.1257]
[1753603007183,1.2118,3766.5,3766.4,23.65652]
[1753603008280,0.1914,3766.5,3766.4,23.65652]
[1753603008982,3.2078,3766.6,3766.5,2.30351]
[1753603011488,2.84154656,3766.9,3766.8,1.0097]
[1753603011680,3.35854656,3766.9,3766.8,1.7727]
[1753603011886,1.4463,3766.9,3766.8,23.1317]
[1753603012178,2.39664656,3766.9,3766.8,23.66246]
[1753603012380,0.1914,3766.9,3766.8,23.66246]
[1753603012682,1.91224656,3767.0,3766.9,0.53075]
[1753603012883,0.6363,3767.2,3767.1,1.23882]
[1753603013077,1.2118,3767.2,3767.1,22.93784797]
[1753603013385,1.2118,3767.2,3767.1,23.20672]
[1753603013977,3.9352,3767.4,3767.3,0.7081]
[1753603014181,0.4739,3767.3,3767.2,0.7345]
[1753603014386,0.7669,3767.3,3767.2,1.2388]
[1753603014584,1.2118,3767.3,3767.2,1.2388]
[1753603014889,1.2118,3767.3,3767.2,1.8467]
[1753603015186,1.2118,3767.3,3767.2,2.3034]
[1753603015385,1.53731216,3767.3,3767.2,2.3034]
[1753603016188,1.98221216,3767.3,3767.2,2.3034]
[1753603017887,0.77041216,3767.3,3767.2,2.3034]
[1753603018088,1.07801216,3767.3,3767.2,2.3034]
[1753603019485,2.50391216,3767.3,3767.2,23.6434]
[1753603019990,2.19431216,3767.3,3767.2,23.6434]
[1753603020287,1.57441216,3767.3,3767.2,23.6434]
[1753603020489,0.77041216,3767.3,3767.2,23.6434]
[1753603021290,0.77041216,3767.3,3767.2,28.6434]
[1753603021586,0.77041216,3767.3,3767.2,23.6434]
[1753603021888,1.2307,3768.0,3767.9,0.6566]
[1753603022084,1.2307,3768.0,3767.9,22.8129885]
[1753603022282,1.5403,3768.0,3767.9,22.8129885]
[1753603022885,1.2307,3768.0,3767.9,22.8129885]
[1753603023386,1.4239,3768.0,3767.9,1.39831]
[1753603023593,1.7335,3768.0,3767.9,21.5223]
[1753603023888,1.7335,3768.0,3767.9,22.05291]
[1753603024587,1.7335,3768.0,3767.9,22.36301]
[1753603024786,1.7335,3768.0,3767.9,22.56141]
[1753603026590,0.3076,3768.0,3767.9,22.73281]
[1753603027386,0.4972,3768.0,3767.9,22.73281]
[1753603027589,1.2307,3768.0,3767.9,22.73281]
[1753603027891,1.4239,3768.0,3767.9,22.73281]
[1753603028091,1.7335,3768.0,3767.9,22.73281]
[1753603029685,1.7335,3768.0,3767.9,22.56141]
[1753603030288,1.4239,3768.0,3767.9,22.73281]
[1753603030490,1.2307,3768.0,3767.9,22.73281]
[1753603031193,0.018,3768.3,3768.2,0.92327]
[1753603031389,0.018,3768.3,3768.2,22.71177]
[1753603031588,0.9411,3768.3,3768.2,22.71177]
[1753603031791,1.2487,3768.3,3768.2,22.71177]
[1753603031987,0.3256,3768.3,3768.2,22.71177]
[1753603032790,0.018,3768.3,3768.2,27.71177]
[1753603033693,0.018,3768.3,3768.2,6.40477]
[1753603033994,0.018,3768.3,3768.2,27.70477]
[1753603034181,3.2078,3768.6,3768.5,1.40472]
[1753603034382,4.9413,3768.6,3768.5,22.53232]
[1753603036893,4.9413,3768.6,3768.5,22.70072]
[1753603037900,4.6317,3768.6,3768.5,22.70072]
[1753603038196,3.5154,3768.6,3768.5,22.70072]
[1753603038397,0.3076,3768.6,3768.5,25.90852]
[1753603039593,0.9231,3768.9,3768.8,0.53048]
[1753603039795,0.3096,3769.1,3769.0,0.53045]
[1753603039999,1.4259,3769.1,3769.0,22.52225]
[1753603040300,1.7335,3769.1,3769.0,22.52225]
[1753603040791,1.7335,3769.1,3769.0,22.51925]
[1753603043606,1.7335,3769.1,3769.0,22.50825]
[1753603048498,3.2078,3769.8,3769.7,0.53036]
[1753603048702,1.4193,3769.1,3769.0,0.4924]
[1753603048906,1.7253,3769.1,3769.0,21.78845]
[1753603049604,1.7253,3769.1,3769.0,22.28085]
[1753603052406,1.7253,3769.1,3769.0,1.02285]
[1753603052607,1.7253,3769.1,3769.0,22.27485]
[1753603053406,1.7253,3769.1,3769.0,22.27285]
[1753603054109,1.7253,3769.1,3769.0,1.02285]
[1753603054309,1.7253,3769.1,3769.0,21.77645]
[1753603054813,1.7253,3769.1,3769.0,0.53045]
[1753603055107,1.7253,3769.1,3769.0,21.77445]
[1753603056906,1.7253,3769.1,3769.0,22.46455]
[1753603057101,1.7253,3769.1,3769.0,1.22055]
[1753603057305,1.7253,3769.1,3769.0,22.45955]
[1753603063015,1.7253,3769.1,3769.0,1.22055]
[1753603063214,1.7253,3769.1,3769.0,22.44755]
[1753603063410,0.3098,3768.9,3768.5,3.2078]
[1753603063619,0.3098,3768.9,3767.5,0.86999706]
[1753603063620,1.7253,3767.1,3767.0,1.94844]
[1753603063816,1.7253,3767.1,3767.0,23.29344]
[1753603064912,0.3098,3768.4,3767.8,0.7225]
[1753603065115,0.3098,3768.4,3767.0,26.345]
[1753603065116,1.2292,3768.4,3768.3,5.15605]
[1753603065314,1.4193,3768.4,3768.3,21.539]
[1753603065509,0.6791,3768.1,3767.8,0.53062]
[1753603065715,5.0,3768.4,3767.8,0.53062]
[1753603065716,0.6791,3768.0,3767.9,21.539]
[1753603065909,0.6791,3767.8,3767.7,3.4944]
[1753603066218,1.4193,3767.8,3767.7,25.28544]
[1753603066511,1.4193,3767.8,3767.7,25.57404]
[1753603066815,1.4193,3767.8,3767.7,25.77984]
[1753603067015,1.6091,3767.8,3767.7,4.66674]
[1753603067216,1.6091,3767.8,3767.7,26.50644]
[1753603067713,1.6091,3767.8,3767.7,3.73844]
[1753603067919,1.6091,3767.8,3767.7,25.27944]
[1753603068119,0.6791,3767.8,3767.7,21.541]
[1753603068720,1.6091,3767.8,3767.7,21.541]
[1753603069021,1.6091,3767.8,3767.7,22.07164]
[1753603071126,1.6091,3767.8,3767.7,22.35824]
[1753603071321,1.6091,3767.8,3767.7,1.02304]
[1753603071531,1.6091,3767.8,3767.7,22.55504]
[1753603071729,1.6091,3767.8,3767.7,23.28264]
[1753603071925,1.2292,3767.8,3767.7,23.47434]
[1753603074838,0.7988,3767.8,3767.7,23.64594]
[1753603075538,1.2292,3767.8,3767.7,23.64594]
[1753603075738,1.2292,3767.8,3767.7,23.47434]
[1753603076433,0.5115,3767.8,3767.7,23.47434]
[1753603076634,0.9419,3767.8,3767.7,23.64594]
[1753603076833,1.2292,3767.8,3767.7,23.64594]
[1753603077036,1.4193,3767.8,3767.7,23.47434]
[1753603077235,1.6091,3767.8,3767.7,23.45834]
[1753603077933,1.6091,3767.8,3767.7,0.4924]
[1753603078139,1.6091,3767.8,3767.7,21.7966]
[1753603078327,0.9638,3767.7,3767.6,0.53064]
[1753603078639,1.6631,3767.7,3767.6,22.33864]
[1753603079637,1.6631,3767.7,3767.4,0.4236]
[1753603079831,1.464,3767.6,3767.5,21.508]
[1753603080033,0.5002,3767.3,3767.2,3.2078]
[1753603080233,1.6631,3767.3,3767.2,25.55251]
[1753603080433,1.6631,3767.3,3767.2,4.94371]
[1753603080633,1.6631,3767.3,3767.2,26.46071]
[1753603081735,1.6631,3767.3,3767.2,26.45471]
[1753603082246,1.6631,3767.3,3767.2,26.65181]
[1753603084544,1.6631,3767.3,3767.2,26.64381]
[1753603086041,1.4738,3767.3,3767.2,26.64381]
[1753603086442,1.2707,3767.3,3767.2,26.64381]
[1753603087743,1.2707,3767.3,3767.2,5.14081]
[1753603088042,1.6631,3767.3,3767.2,26.62381]
[1753603090747,1.4738,3767.3,3767.2,26.62381]
[1753603091149,1.2707,3767.3,3767.2,26.62381]
[1753603092637,1.46,3767.3,3767.2,26.62381]
[1753603093343,1.46,3767.3,3767.2,26.60581]
[1753603093645,1.46,3767.3,3767.2,5.14081]
[1753603093837,1.46,3767.3,3767.2,26.59881]
[1753603094449,1.2707,3767.3,3767.2,26.59881]
[1753603094840,6.6631,3767.3,3766.6,0.299]
[1753603095045,1.6631,3766.7,3766.6,0.299]
[1753603095247,1.6631,3766.7,3766.6,12.819]
[1753603096045,1.6631,3766.7,3766.6,0.299]
[1753603096249,1.6631,3766.7,3766.6,20.538]
[1753603096551,1.4738,3766.7,3766.6,22.17209]
[1753603096740,0.5065,3766.7,3766.6,22.34329]
[1753603096945,3.4069,3767.1,3767.0,1.21044]
[1753603097246,0.1991,3767.1,3767.0,23.57724]
[1753603097548,0.5065,3767.1,3767.0,23.57724]
[1753603099453,1.2707,3767.1,3767.0,23.57724]
[1753603099752,1.6631,3767.1,3767.0,23.40604]
[1753603100350,1.6631,3767.1,3767.0,1.93304]
[1753603100552,1.6631,3767.1,3767.0,23.40004]
[1753603100949,1.6631,3767.1,3767.0,1.93304]
[1753603101251,1.6631,3767.1,3767.0,23.39604]
[1753603102248,1.6631,3767.1,3767.0,1.93304]
[1753603102453,1.6631,3767.1,3767.0,23.38904]
[1753603103052,1.6631,3767.1,3767.0,22.8563]
[1753603106357,1.6631,3767.1,3767.0,1.4023]
[1753603106557,1.6631,3767.1,3767.0,22.8463]
[1753603106752,1.6631,3767.1,3767.0,23.37704]
[1753603113965,1.6631,3767.1,3767.0,1.93304]
[1753603114163,1.6631,3767.1,3767.0,23.34604]
[1753603120170,0.3074,3767.1,3767.0,23.51724]
[1753603120562,0.2943,3767.5,3767.4,2.19718]
[1753603120769,0.2943,3767.8,3767.7,2.19714]
[1753603120970,3.5021,3768.1,3768.0,2.19709]
[1753603121263,0.2943,3768.1,3768.0,23.59109]
[1753603121770,0.4908,3768.1,3768.0,23.59109]
[1753603122771,0.935,3768.1,3768.0,23.59109]
[1753603124170,0.4908,3768.1,3768.0,23.59109]
[1753603124570,1.6333,3768.1,3768.0,0.84659]
[1753603124770,1.6333,3768.1,3768.0,22.23659]
[1753603124972,1.6333,3768.1,3768.0,22.44599]
[1753603125172,1.6333,3768.1,3768.0,22.90319]
[1753603125372,1.6333,3768.1,3768.0,23.21019]
[1753603125576,1.6333,3768.1,3768.0,23.41589]
[1753603130386,1.2209,3768.1,3768.0,23.41589]
[1753603130981,1.2209,3768.1,3768.0,23.58729]
[1753603132888,0.4908,3768.1,3768.0,23.58729]
[1753603133088,0.2943,3768.1,3768.0,23.58729]
[1753603133486,0.4908,3768.1,3768.0,23.58729]
[1753603133986,0.935,3768.1,3768.0,23.58729]
[1753603136287,0.2943,3768.1,3768.0,23.58729]
[1753603137187,0.9266,3768.6,3768.5,1.04322]
[1753603137391,0.9266,3768.6,3768.5,23.53222]
[1753603137591,0.4824,3768.6,3768.5,23.53222]
[1753603137793,0.5065,3768.6,3768.5,23.53222]
[1753603139593,1.2498,3768.6,3768.5,23.36082]
[1753603140992,0.5065,3768.6,3768.5,23.53212]
[1753603141198,0.31,3768.6,3768.5,23.53212]
[1753603141997,0.9562,3768.6,3768.5,23.53212]
[1753603143200,0.5145,3768.6,3768.5,23.53212]
[1753603145398,3.2078,3769.2,3768.5,23.0016]
[1753603145702,1.6554,3769.1,3769.0,1.94355]
[1753603146000,1.6554,3769.1,3769.0,23.25155]
[1753603146203,1.2578,3769.1,3769.0,23.25155]
[1753603146398,1.2578,3769.1,3769.0,23.42285]
[1753603146699,0.31,3769.1,3769.0,23.42285]
[1753603148204,1.1518,3769.6,3769.5,1.21758]
[1753603148402,1.3454,3769.6,3769.5,23.26248]
[1753603148702,1.6554,3769.6,3769.5,23.26248]
[1753603148902,1.6554,3769.6,3769.5,22.7321]
[1753603149103,1.6554,3769.6,3769.5,23.26248]
[1753603154206,0.6997,3769.6,3769.5,21.82938]
[1753603154403,0.6997,3769.6,3769.5,23.04208]
[1753603154807,1.6554,3769.6,3769.5,23.04208]
[1753603156706,1.6554,3769.6,3769.5,22.32508]
[1753603156908,1.6554,3769.6,3769.5,22.12058]
[1753603157211,1.6554,3769.6,3769.5,21.82938]
[1753603157606,1.6554,3769.6,3769.5,22.12058]
[1753603158111,1.6554,3769.6,3769.5,22.75978]
[1753603160119,2.18577,3769.6,3769.5,23.04208]
[1753603160309,1.6554,3769.6,3769.5,23.04208]
[1753603161413,2.18577,3769.6,3769.5,23.04208]
[1753603161710,2.18577,3769.6,3769.5,23.02208]
[1753603164013,1.6554,3769.6,3769.5,23.02208]
[1753603164214,1.6554,3769.6,3769.5,23.22248]
[1753603164411,2.18584,3769.1,3769.0,1.2127]
[1753603164613,1.6554,3769.1,3769.0,23.21055]
[1753603164810,1.2578,3769.1,3769.0,23.38185]
[1753603165010,0.31,3769.1,3769.0,23.38185]
[1753603173822,0.5152,3769.1,3769.0,23.38185]
[1753603174117,1.2373,3769.1,3769.0,26.58965]
[1753603174320,1.2373,3769.1,3769.0,26.41835]
[1753603174919,1.6349,3769.1,3769.0,5.15135]
[1753603175119,1.6349,3769.1,3769.0,26.42435]
[1753603175419,1.6349,3769.1,3769.0,22.09165]
[1753603175917,1.6349,3769.1,3769.0,22.28235]
[1753603176117,1.6349,3769.1,3769.0,22.73285]
[1753603176319,1.6349,3769.1,3769.0,23.01905]
[1753603176519,1.6349,3769.1,3769.0,23.21265]
[1753603180016,1.6349,3769.1,3769.0,1.94265]
[1753603180226,1.6349,3769.1,3769.0,23.20465]
[1753603181021,1.2373,3769.1,3769.0,23.20465]
[1753603182723,1.2373,3769.1,3769.0,1.94265]
[1753603183017,1.4306,3769.1,3769.0,23.18965]
[1753603183222,1.6349,3769.1,3769.0,23.18965]
[1753603183523,1.6349,3769.1,3769.0,1.74905]
[1753603183724,1.6349,3769.1,3769.0,22.54555]
[1753603184923,1.6349,3769.1,3769.0,22.99605]
[1753603185120,1.6349,3769.1,3769.0,21.245]
[1753603185324,1.6349,3769.1,3769.0,21.77545]
[1753603185620,1.6349,3769.1,3769.0,0.53045]
[1753603185825,1.6295,3768.8,3768.7,0.2996]
[1753603186026,1.6295,3768.8,3768.7,22.0711]
[1753603186526,1.6295,3768.8,3768.7,22.7123]
[1753603186726,1.6295,3768.8,3768.7,22.9985]
[1753603187221,1.6295,3768.8,3768.7,0.4903]
[1753603187421,1.6295,3768.8,3768.7,21.5416]
[1753603187928,1.6295,3768.6,3768.5,38.4996]
[1753603188125,1.6295,3768.6,3768.5,59.7406]
[1753603188526,1.6295,3768.6,3768.5,60.1911]
[1753603188925,1.6295,3768.6,3768.5,60.72162]
[1753603190126,1.6295,3768.6,3768.5,60.1911]
[1753603190530,1.6295,3768.6,3768.5,60.72162]
[1753603191226,1.6295,3768.6,3768.5,60.1911]
[1753603191528,1.6295,3768.6,3768.5,60.72162]
[1753603194934,1.6295,3768.6,3768.5,39.48062]
[1753603195232,1.6295,3768.6,3768.5,60.71462]
[1753603195626,1.6295,3768.6,3768.5,39.48062]
[1753603195831,1.6295,3768.6,3768.5,60.71462]
[1753603196034,1.2319,3768.6,3768.5,60.71462]
[1753603196744,1.4211,3768.6,3768.5,60.71462]
[1753603198432,1.6254,3768.6,3768.5,60.71462]
[1753603205240,1.4362,3768.6,3768.5,60.71462]
[1753603205441,1.6255,3768.6,3768.5,60.71462]
[1753603205738,1.6255,3768.6,3768.5,39.48062]
[1753603205935,1.4362,3768.6,3768.5,60.69362]
[1753603206135,0.3046,3768.6,3768.5,60.69362]
[1753603206336,0.6603,3769.0,3768.9,1.23567]
[1753603206537,3.4147,3769.3,3769.2,1.4713]
[1753603206737,4.5421,3769.3,3769.2,22.6853]
[1753603206935,4.8374,3769.3,3769.2,22.6853]
[1753603207439,4.8374,3769.3,3769.2,23.21573]
[1753603207942,4.4579,3769.3,3769.2,23.21573]
[1753603208233,3.5031,3769.3,3769.2,23.21573]
[1753603209531,3.71,3769.3,3769.2,23.21573]
[1753603210041,4.1634,3769.3,3769.2,23.21573]
[1753603212844,3.5031,3769.3,3769.2,23.21573]
[1753603214346,4.0887,3769.3,3768.7,2.09234]
[1753603214545,1.6296,3769.2,3769.1,2.00174]
[1753603214748,1.2501,3769.2,3769.1,23.20374]
[1753603214946,1.4403,3769.2,3769.1,23.20374]
[1753603215146,1.6296,3769.2,3769.1,23.20374]
[1753603215443,1.6296,3769.2,3769.1,2.00174]
[1753603215649,1.6296,3769.2,3769.1,22.6703]
[1753603215849,1.6296,3769.2,3769.1,23.20074]
[1753603216045,1.6296,3769.2,3769.1,22.6703]
[1753603216247,1.6296,3769.2,3769.1,23.20074]
[1753603216547,1.6296,3769.2,3769.1,22.6703]
[1753603216748,1.6296,3769.2,3769.1,23.20074]
[1753603216951,1.6296,3769.2,3769.1,22.6703]
[1753603217253,1.6296,3769.2,3769.1,23.20074]
[1753603217751,1.6296,3769.2,3769.1,22.6703]
[1753603218151,1.6296,3769.2,3769.1,23.20074]
[1753603218347,1.6296,3769.2,3769.1,22.6703]
[1753603218546,0.2953,3772.2,3771.8,1.89626]
[1753603218749,0.2953,3772.5,3771.9,0.3531]
[1753603219053,0.2953,3772.5,3772.4,5.10398]
[1753603219252,0.2953,3772.5,3772.4,27.05598]
[1753603219662,0.5022,3772.5,3772.4,27.05598]
[1753603219862,0.52981,3773.6,3772.4,26.3227]
[1753603220056,1.145,3772.9,3772.8,4.79601]
[1753603220356,1.145,3772.9,3772.8,26.69581]
[1753603220563,1.145,3772.9,3772.8,26.08491]
[1753603220762,1.145,3772.9,3772.8,27.04891]
[1753603221563,1.145,3772.9,3772.8,25.68072]
[1753603221856,1.145,3772.9,3772.8,4.44292]
[1753603222062,1.7418,3772.9,3772.8,26.37692]
[1753603222263,1.7418,3772.9,3772.8,26.37792]
[1753603223151,1.7418,3772.9,3772.8,4.13992]
[1753603223350,1.7418,3772.9,3772.8,3.73772]
[1753603223556,1.7418,3772.9,3772.8,25.67772]
[1753603224250,6.7418,3772.9,3772.8,21.938]
[1753603224452,1.7418,3772.9,3772.8,21.938]
[1753603224658,1.7418,3772.9,3772.8,22.46792]
[1753603225255,1.7418,3772.9,3772.7,0.52993]
[1753603225461,1.7418,3772.6,3772.5,3.73775]
[1753603225952,1.7418,3772.6,3772.5,3.2078]
[1753603226155,0.4534,3771.9,3771.6,0.3079]
[1753603226358,1.7418,3771.7,3771.6,0.53009]
[1753603226757,1.7418,3771.7,3771.6,22.46409]
[1753603227062,1.7418,3771.7,3771.6,0.53009]
[1753603227363,1.7418,3771.7,3771.6,22.45709]
[1753603228063,1.7418,3771.7,3771.6,21.927]
[1753603228254,0.6916,3771.7,3771.4,3.2078]
[1753603228562,1.8416,3771.6,3771.5,21.927]
[1753603228764,0.7452,3771.6,3771.5,0.5301]
[1753603228962,0.7452,3771.6,3771.5,22.4461]
[1753603229261,0.7452,3771.6,3771.5,22.4391]
[1753603229464,1.8416,3771.6,3771.5,24.154]
[1753603229764,0.8135,3772.2,3772.1,2.24492]
[1753603229965,1.5,3772.5,3772.4,1.88317]
[1753603230162,1.8416,3772.5,3772.4,24.15487]
[1753603230556,1.8416,3772.5,3772.4,22.9804]
[1753603230862,2.37156,3772.5,3772.4,22.3318]
[1753603231064,1.8416,3772.5,3772.4,22.86178]
[1753603231263,1.8416,3772.5,3772.4,22.3318]
[1753603231464,2.37156,3772.5,3772.4,22.3318]
[1753603231760,2.37156,3772.5,3772.3,0.52998]
[1753603231963,0.3067,3771.7,3771.4,0.3617]
[1753603232270,1.8416,3771.5,3771.4,0.75451]
[1753603232568,1.8416,3771.5,3771.4,22.67151]
[1753603232867,2.3717,3771.5,3771.4,0.75451]
[1753603233062,0.53016,3771.2,3771.0,3.73797]
[1753603233262,0.7452,3771.1,3771.0,3.2078]
[1753603233468,1.27536,3771.1,3771.0,25.1188]
[1753603233763,0.3067,3770.9,3770.7,0.3534]
[1753603233966,1.3881,3770.9,3770.8,60.62219]
[1753603234167,1.8416,3770.9,3770.8,60.62219]
[1753603234367,2.37179,3770.9,3770.8,22.66459]
[1753603234566,1.8416,3770.9,3770.8,22.66459]
[1753603234767,2.37179,3770.9,3770.8,22.66459]
[1753603234967,2.37179,3770.9,3770.8,22.1344]
[1753603235269,1.8416,3770.9,3770.8,22.1344]
[1753603235463,1.8416,3770.9,3770.8,22.6646]
[1753603235664,1.8416,3770.9,3770.8,22.1344]
[1753603236064,0.7452,3770.9,3770.6,0.3617]
[1753603236269,1.32526,3771.6,3770.5,3.6296]
[1753603236270,1.8416,3770.6,3770.5,3.6296]
[1753603236464,0.3013,3772.2,3771.4,1.0062]
[1753603236666,1.0868,3772.7,3772.6,1.1369]
[1753603236866,1.0868,3772.7,3772.6,22.6775]
[1753603237065,1.5403,3772.7,3772.6,23.20745]
[1753603237266,1.8416,3772.7,3772.6,22.84575]
[1753603237768,2.37153,3772.7,3772.6,22.3158]
[1753603237971,1.8416,3772.7,3772.6,22.3158]
[1753603238268,2.37153,3772.7,3772.6,22.3158]
[1753603240272,1.8416,3772.7,3772.6,22.3158]
[1753603240570,2.37153,3772.7,3772.6,22.3158]
[1753603242072,1.8416,3772.7,3772.6,22.3158]
[1753603242275,2.37153,3772.7,3772.6,22.3158]
[1753603244577,2.37153,3772.7,3772.6,22.6775]
[1753603244873,2.37153,3772.7,3772.6,22.5488]
[1753603246479,2.37153,3772.7,3772.6,22.9105]
[1753603249578,2.37153,3772.7,3772.6,23.2639]
[1753603249782,2.37153,3772.7,3772.6,22.9105]
[1753603250279,2.37153,3772.7,3772.2,0.3617]
[1753603250280,0.7452,3772.4,3772.2,0.3617]
[1753603250581,2.37159,3772.3,3772.2,22.4357]
[1753603250777,2.37159,3772.3,3772.2,23.2109]
[1753603251080,2.37159,3772.3,3772.2,1.1369]
[1753603251281,2.37159,3772.3,3772.2,23.2059]
[1753603251783,2.37159,3772.3,3772.2,23.4928]
[1753603254386,2.37159,3772.3,3772.2,22.2934]
[1753603254582,0.96853,3772.0,3771.9,1.4238]
[1753603254786,2.37163,3772.0,3771.9,23.7479]
[1753603255386,2.37163,3772.0,3771.9,1.7149]
[1753603255587,2.37163,3772.0,3771.9,23.7479]
[1753603255888,2.37163,3772.0,3771.9,1.7149]
[1753603256086,2.37163,3772.0,3771.9,23.7419]
[1753603257386,2.37163,3772.0,3771.9,24.27195]
[1753603257588,2.37163,3772.0,3771.9,23.7419]
[1753603258394,2.37163,3772.0,3771.9,24.27195]
[1753603258689,2.37163,3772.0,3771.9,23.7419]
[1753603260990,1.32493,3772.5,3771.7,3.2078]
[1753603260991,0.95596,3771.8,3771.7,4.9625]
[1753603261295,2.33496,3771.8,3771.7,26.9395]
[1753603261790,2.33496,3771.8,3771.7,4.6495]
[1753603261991,2.33496,3771.8,3771.7,25.9708]
[1753603262588,1.01392,3771.4,3771.3,38.5202]
[1753603262893,2.33502,3771.4,3771.3,23.1108]
[1753603263090,2.33502,3771.4,3771.3,22.756]
[1753603263290,2.33502,3771.4,3771.3,22.4158]
[1753603263792,2.33502,3771.4,3771.3,22.756]
[1753603264088,2.33502,3771.4,3771.3,23.1068]
[1753603264392,2.33502,3771.4,3771.3,22.754]
[1753603264694,2.33502,3771.4,3771.3,22.745]
[1753603264895,2.33502,3771.4,3771.3,22.744]
[1753603265095,2.33502,3771.4,3771.3,0.779]
[1753603265292,2.33502,3771.4,3771.3,22.739]
[1753603265601,2.33502,3771.4,3771.3,23.3997]
[1753603266086,2.33502,3771.4,3771.3,23.7127]
[1753603266395,2.33502,3771.4,3771.3,1.7547]
[1753603266695,2.33502,3771.4,3771.3,23.7047]
[1753603267195,2.33502,3771.4,3771.3,23.3917]
[1753603268397,2.33502,3771.4,3771.3,23.7047]
[1753603269292,2.33502,3771.4,3771.3,23.3917]
[1753603269497,1.24084,3771.2,3771.1,0.779]
[1753603269798,2.33504,3771.2,3771.1,23.0578]
[1753603271298,2.33504,3771.2,3771.1,23.6807]
[1753603274402,0.53014,3771.2,3771.1,23.6807]
[1753603277400,1.5201,3771.3,3771.2,1.006]
[1753603277703,1.4993,3771.3,3771.2,23.6347]
[1753603278199,1.8049,3771.3,3771.2,23.6347]
[1753603279205,2.33503,3771.3,3771.2,0.779]
[1753603279411,2.33503,3771.3,3771.2,22.1031]
[1753603279902,2.33503,3771.3,3771.2,22.643]
[1753603280201,2.33503,3771.3,3771.2,22.9958]
[1753603283505,2.33503,3771.3,3771.2,23.3057]
[1753603283807,2.33503,3771.3,3771.2,23.6187]
[1753603284798,2.33503,3771.3,3771.2,23.2577]
[1753603286609,2.33503,3771.3,3771.2,1.4417]
[1753603286807,2.33503,3771.3,3771.2,23.2447]
[1753603287602,1.03473,3771.3,3771.2,23.2447]
[1753603287914,3.657,3772.0,3771.2,23.2447]
[1753603287915,1.3627,3772.6,3772.3,0.4116]
[1753603288110,1.58545,3772.6,3772.5,1.0624]
[1753603288306,1.58545,3772.6,3772.5,1.59236]
[1753603288806,1.7856,3772.6,3772.5,1.59236]
[1753603290307,0.8104,3772.6,3772.5,1.59236]
[1753603290609,0.6083,3772.6,3772.5,1.59236]
[1753603291005,3.2078,3772.9,3772.5,1.0624]
[1753603291211,0.725,3773.0,3772.9,0.9415]
[1753603291408,1.4794,3773.0,3772.9,23.5403]
[1753603291711,1.7856,3773.2,3773.1,0.7227]
[1753603292014,2.31546,3773.2,3773.1,0.7227]
[1753603292309,2.31546,3773.2,3773.1,1.0624]
[1753603292512,2.31546,3773.2,3773.1,0.7513]
[1753603294112,1.25489,3773.0,3772.9,24.26213223]
[1753603294306,2.31549,3773.0,3772.9,22.3596]
[1753603294806,2.31549,3773.0,3772.9,22.6993]
[1753603296002,2.31549,3773.0,3772.9,23.0104]
[1753603297715,2.31549,3773.0,3772.9,22.6993]
[1753603301716,2.31549,3773.0,3772.9,0.7513]
[1753603306223,2.31549,3773.0,3772.9,1.0624]
[1753603307518,2.31549,3773.0,3772.9,0.7513]
[1753603308214,2.31552,3772.8,3772.7,0.1891]
[1753603308421,2.31552,3772.8,3772.6,21.836]
[1753603308422,1.25493,3772.7,3772.6,21.836]
[1753603308718,2.31553,3772.7,3772.6,22.2476]
[1753603308916,2.31553,3772.7,3772.6,22.8984]
[1753603311319,2.31553,3772.7,3772.6,24.80093223]
[1753603311922,2.31553,3772.7,3772.6,2.96493223]
[1753603314417,2.31553,3772.7,3772.6,1.0624]
[1753603317623,2.31553,3772.7,3772.6,3.44180195]
[1753603318219,2.31553,3772.7,3772.6,25.20080195]
[1753603318418,2.31553,3772.7,3772.6,1.0502]
[1753603320623,2.31553,3772.7,3772.6,3.42960195]
[1753603321120,2.31553,3772.7,3772.6,1.0502]
[1753603323719,1.3247,3773.1,3772.3,22.1585]
[1753603323720,0.73648,3772.4,3772.3,22.1585]
[1753603324022,2.35138,3772.4,3772.3,22.8061]
[1753603328728,2.02368,3772.4,3772.3,22.8061]
[1753603329027,2.35138,3772.4,3772.3,22.8061]
[1753603330222,2.35138,3772.4,3772.3,1.0791]
[1753603330426,2.35138,3772.4,3772.3,22.7581]
[1753603331229,2.35138,3772.4,3772.3,1.0791]
[1753603331731,2.35138,3772.4,3772.3,22.7471]
[1753603334633,2.35138,3772.4,3772.3,23.27709]
[1753603334825,2.35138,3772.4,3772.3,22.7471]
[1753603336236,2.35138,3772.4,3772.3,23.27709]
[1753603339440,2.35138,3772.4,3772.3,22.7471]
[1753603340541,1.0981,3773.1,3772.4,0.2989]
[1753603340834,1.0981,3773.1,3772.3,24.8758]